bitfinex/quotes_ETHUSD_20241120
["timestamp","ask_amount","ask_price","bid_price","bid_amount"]
[1732078301257,4.54287785,3094.8,3094.3,0.08904955]
[1732078301459,4.54287785,3094.8,3094.2,2.39912]
[1732078301680,4.54287785,3094.8,3094.3,0.08904955]
[1732078301959,4.54287785,3094.8,3094.2,2.39912]
[1732078302183,4.54287785,3094.8,3094.4,0.08904218]
[1732078302400,4.54287785,3094.8,3094.3,0.08904955]
[1732078302558,4.00729,3094.8,3094.5,0.0890348]
[1732078302754,4.00729,3094.8,3094.4,0.08904218]
[1732078302951,4.00729,3094.8,3094.6,0.08902743]
[1732078303169,4.00729,3094.8,3094.3,1.61586]
[1732078303355,4.86599785,3094.8,3094.7,0.08902006]
[1732078303567,4.86599785,3094.8,3094.3,1.61586]
[1732078303763,4.86599785,3094.8,3094.7,0.08902006]
[1732078303962,4.86599785,3094.8,3094.3,1.61586]
[1732078304165,4.86599785,3094.8,3094.7,0.08903239]
[1732078304365,4.86599785,3094.8,3094.3,1.61586]
[1732078304366,1.63470785,3094.8,3094.3,1.61586]
[1732078304599,4.06014,3095.0,3094.7,0.08903239]
[1732078304761,1.6857128,3095.1,3094.6,0.7832]
[1732078304762,3.56787432,3095.1,3094.6,0.7832]
[1732078305176,3.56787432,3095.1,3094.7,0.08903193]
[1732078308765,0.33696432,3095.1,3094.7,0.08903193]
[1732078308996,0.33696432,3095.1,3094.8,1.6156]
[1732078309193,3.0,3095.4,3095.0,0.8038]
[1732078309905,3.0,3095.4,3095.1,0.08899425]
[1732078310214,0.84100985,3095.3,3095.1,0.08899425]
[1732078310799,4.57929848,3095.5,3095.1,0.08899425]
[1732078310988,3.23062,3095.4,3095.1,0.08899425]
[1732078313015,1.34874848,3095.5,3095.1,0.08899425]
[1732078313368,4.57924848,3095.5,3095.0,0.8038]
[1732078313687,4.57924848,3095.5,3095.1,0.08899425]
[1732078316310,3.23061,3095.4,3095.1,0.08899425]
[1732078316494,1.34874848,3095.3,3095.1,0.08899425]
[1732078316670,4.57946848,3095.3,3095.1,0.08899425]
[1732078316873,0.0599924,3095.2,3095.1,0.08899425]
[1732078317511,3.2907924,3095.2,3095.1,0.08899425]
[1732078317719,4.52555409,3095.2,3095.1,0.08899425]
[1732078317871,4.58554649,3095.2,3094.7,0.8038]
[1732078318071,1.34874848,3095.1,3094.8,0.08899036]
[1732078318268,1.93617874,3095.1,3094.7,0.8038]
[1732078318471,1.93617874,3095.1,3094.8,0.08899036]
[1732078318714,1.93617874,3095.1,3094.7,0.8038]
[1732078318876,1.34874848,3095.1,3094.9,0.08898299]
[1732078319078,1.34874848,3095.1,3094.7,0.8038]
[1732078319346,1.34874848,3095.1,3094.8,0.08899036]
[1732078319821,1.34874848,3095.1,3094.7,0.8038]
[1732078320031,1.34874848,3095.1,3094.9,0.08898675]
[1732078320232,1.34874848,3095.1,3094.8,0.08899654]
[1732078320443,1.34874848,3095.1,3095.0,0.0889818]
[1732078320641,1.34874848,3095.1,3094.9,0.08898917]
[1732078320843,1.34874848,3095.1,3095.0,0.0889818]
[1732078321220,1.34874848,3095.1,3094.7,0.8038]
[1732078321420,1.34874848,3095.1,3095.0,0.0889818]
[1732078321623,1.34874848,3095.1,3094.7,0.8038]
[1732078321843,1.34874848,3095.1,3095.0,0.0889818]
[1732078322049,1.34874848,3095.1,3094.7,0.8038]
[1732078322545,1.34874848,3095.1,3094.8,0.08899895]
[1732078322954,4.57968848,3095.1,3094.7,0.8038]
[1732078323136,4.57968848,3095.1,3094.9,0.08899158]
[1732078323348,4.57968848,3095.1,3094.8,0.08900137]
[1732078323644,4.57968848,3095.1,3095.0,0.08898663]
[1732078323823,4.57968848,3095.1,3094.9,0.088994]
[1732078324027,4.57968848,3095.1,3095.0,0.08898663]
[1732078324427,4.57968848,3095.1,3094.7,0.8038]
[1732078324763,4.91663184,3095.1,3094.7,0.8038]
[1732078324967,4.91663184,3095.1,3094.8,0.0890062]
[1732078325463,4.91663184,3095.1,3094.7,0.8038]
[1732078325668,4.91663184,3095.1,3094.9,0.08899883]
[1732078325968,4.91663184,3095.1,3094.7,0.8038]
[1732078325969,1.68569184,3095.1,3095.0,0.08899388]
[1732078326138,0.33694336,3095.1,3095.0,0.08899388]
[1732078326322,0.33694336,3095.1,3094.7,2.41946]
[1732078326524,0.33694336,3095.1,3095.0,0.08900904]
[1732078326840,0.33694336,3095.1,3095.0,1.6155]
[1732078327025,0.33694336,3095.1,3095.0,1.70451146]
[1732078330843,0.33694336,3095.1,3095.0,0.08901146]
[1732078331029,1.34874848,3095.3,3095.0,0.08901146]
[1732078331231,1.34874848,3095.3,3094.8,1.6156]
[1732078331546,1.34874848,3095.3,3094.7,2.41944]
[1732078331547,3.23083,3095.2,3094.7,2.41944]
[1732078331757,1.34874848,3095.1,3094.9,0.0890079]
[1732078332077,1.34874848,3095.1,3094.8,0.08901769]
[1732078332382,1.34874848,3095.1,3094.7,2.41944]
[1732078332383,1.34874848,3095.1,3094.9,0.0889848]
[1732078332550,1.34874848,3095.1,3094.7,2.41944]
[1732078332744,1.34874848,3095.1,3095.0,0.08898336]
[1732078332930,1.86140554,3095.1,3094.7,2.41944]
[1732078333133,1.34874848,3095.1,3095.0,0.08898336]
[1732078333387,1.34874848,3095.1,3094.7,2.41944]
[1732078333544,1.34874848,3095.1,3095.0,0.08897593]
[1732078333871,1.34874848,3095.1,3094.7,0.8038]
[1732078334076,1.34874848,3095.1,3095.0,0.08897345]
[1732078334236,1.34874848,3095.1,3094.7,0.8038]
[1732078334747,1.34874848,3095.1,3094.8,0.08897334]
[1732078335166,1.89576057,3095.3,3094.8,1.61561]
[1732078335333,5.41009848,3095.5,3094.9,1.70451597]
[1732078335534,0.43981616,3095.4,3095.0,1.61549]
[1732078335761,0.43981616,3095.4,3095.0,0.08896544]
[1732078336489,0.0599924,3095.3,3095.0,0.08896544]
[1732078338203,5.41009848,3095.5,3095.0,0.08896544]
[1732078338407,6.30783149,3095.5,3095.0,0.08896544]
[1732078338560,6.30783149,3095.5,3095.0,1.70445544]
[1732078339283,1.34874848,3095.3,3095.0,0.08896544]
[1732078339688,1.34874848,3095.3,3095.0,1.6155]
[1732078339982,1.34874848,3095.3,3095.1,0.08895807]
[1732078343107,1.34874848,3095.3,3095.1,1.70440807]
[1732078343310,1.34874848,3095.3,3095.1,1.61545]
[1732078343464,1.34874848,3095.3,3095.2,0.0889448]
[1732078343865,1.34874848,3095.3,3095.0,1.6155]
[1732078344189,1.34874848,3095.3,3095.1,0.08895217]
[1732078346172,0.8308,3095.5,3095.2,1.61537]
[1732078346405,1.68567005,3095.6,3095.2,0.0889448]
[1732078346701,1.68567005,3095.6,3095.3,1.61534]
[1732078346869,0.33692157,3095.6,3095.3,1.61534]
[1732078347070,0.33692157,3095.6,3095.4,0.08891913]
[1732078347400,0.33692157,3095.6,3095.5,2.39604]
[1732078347603,0.33692157,3095.6,3095.5,2.48495176]
[1732078350894,0.33692157,3095.6,3095.5,1.70415176]
[1732078354776,1.34874848,3095.9,3095.5,3.31935176]
[1732078355325,1.34874848,3095.9,3095.6,1.61518]
[1732078355627,1.34874848,3095.9,3095.7,0.08889877]
[1732078356203,1.34874848,3095.9,3095.7,1.70403877]
[1732078356404,2.48473326,3096.1,3095.7,1.70403877]
[1732078356727,2.14784848,3096.1,3095.7,1.70403877]
[1732078357095,2.14784848,3096.1,3095.7,1.61514]
[1732078357509,2.14784848,3096.1,3095.8,0.08887136]
[1732078357887,2.14784848,3096.1,3095.7,1.61514]
[1732078358126,2.14784848,3096.1,3095.9,0.08886399]
[1732078358426,2.14784848,3096.1,3095.7,1.61514]
[1732078358427,2.14784848,3096.1,3096.0,0.08885663]
[1732078358579,2.14784848,3096.1,3095.7,1.61514]
[1732078358784,2.14784848,3096.1,3096.0,0.08885663]
[1732078359009,2.14784848,3096.1,3095.7,1.61514]
[1732078359205,2.14784848,3096.1,3096.0,0.08885663]
[1732078359429,2.14784848,3096.1,3095.7,1.61514]
[1732078359633,2.14784848,3096.1,3096.0,0.08885663]
[1732078359925,2.14784848,3096.1,3095.7,1.61514]
[1732078360128,2.14784848,3096.1,3096.0,0.08885663]
[1732078360334,2.14784848,3096.1,3095.8,1.61505]
[1732078360489,2.14784848,3096.1,3096.0,0.08885663]
[1732078360700,2.14784848,3096.1,3095.9,0.08886399]
[1732078360906,2.14784848,3096.1,3096.0,0.08885663]
[1732078361125,2.14784848,3096.1,3095.8,1.61505]
[1732078361326,1.34874848,3096.1,3095.8,1.61505]
[1732078361634,1.34874848,3096.3,3096.0,1.61498]
[1732078362013,1.34874848,3096.3,3096.1,0.08883378]
[1732078364644,1.34874848,3096.3,3096.1,1.70376378]
[1732078364832,1.34874848,3096.3,3096.1,0.08883378]
[1732078365845,1.34874848,3096.3,3096.1,1.70375378]
[1732078366043,3.0,3096.6,3096.2,1.61484]
[1732078366253,3.0,3096.6,3096.3,1.61481]
[1732078366254,1.34874848,3096.6,3096.3,1.61481]
[1732078366405,1.34874848,3096.6,3096.3,1.70361493]
[1732078366604,1.34874848,3096.6,3096.3,0.08880493]
[1732078366804,0.7845,3096.7,3096.2,1.61485]
[1732078367029,1.40874088,3096.6,3096.3,0.08880493]
[1732078368260,1.34874848,3096.6,3096.3,0.08880493]
[1732078371357,1.34874848,3096.4,3096.3,0.08880493]
[1732078371742,1.34874848,3096.4,3096.0,0.752]
[1732078371924,1.34874848,3096.4,3096.3,0.0888191]
[1732078372128,1.34874848,3096.4,3096.0,2.36696]
[1732078372354,1.34874848,3096.4,3096.3,0.0888191]
[1732078372562,1.34874848,3096.4,3096.1,1.61493]
[1732078372856,1.34874848,3096.4,3096.2,0.08882888]
[1732078373060,0.8444924,3096.3,3096.2,0.08882888]
[1732078373362,4.0741524,3096.3,3095.7,1.61513]
[1732078373658,1.34874848,3096.1,3095.7,1.61513]
[1732078373870,1.34874848,3096.1,3095.8,0.08882763]
[1732078373871,1.34874848,3095.9,3095.8,0.08882763]
[1732078374371,1.34874848,3095.9,3095.3,0.752]
[1732078374545,1.34874848,3095.9,3095.8,0.08883999]
[1732078374736,1.34874848,3095.9,3095.4,1.61528]
[1732078374936,1.34874848,3095.9,3095.8,0.08883999]
[1732078375192,0.7845,3096.3,3096.0,1.61498]
[1732078375472,3.33682833,3096.5,3096.1,0.08884673]
[1732078375473,1.12132833,3096.5,3096.1,0.08884673]
[1732078375627,1.45501116,3096.5,3096.1,1.70377673]
[1732078375860,2.80375964,3096.5,3096.1,0.08884673]
[1732078376292,2.80375964,3096.5,3095.9,2.36698]
[1732078376606,2.80375964,3096.5,3096.0,1.61497]
[1732078376802,0.0599924,3096.4,3096.0,1.61497]
[1732078377098,0.0599924,3096.4,3096.1,0.08883257]
[1732078377514,2.80375964,3096.5,3096.1,0.08883257]
[1732078377688,2.80375964,3096.5,3096.1,1.70376257]
[1732078377861,2.80375964,3096.5,3096.1,0.08883257]
[1732078378263,2.47007681,3096.5,3096.0,1.61498]
[1732078378595,0.33682833,3096.5,3096.2,1.61486]
[1732078378777,0.33682833,3096.5,3096.3,0.08879738]
[1732078380879,1.68557681,3096.5,3096.3,0.08879738]
[1732078386721,1.58557681,3096.5,3096.3,0.08879738]
[1732078387058,1.34874848,3096.5,3096.3,0.08879738]
[1732078391820,1.34874848,3096.5,3096.3,1.70361738]
[1732078392021,0.7845,3096.8,3096.4,1.61474]
[1732078392190,0.7845,3096.8,3096.5,0.08582572]
[1732078397423,0.7845,3096.8,3096.4,1.61474]
[1732078398784,0.7845,3096.8,3096.5,1.61469]
[1732078398983,0.7845,3096.8,3096.5,1.70016481]
[1732078399180,0.7845,3096.8,3096.5,0.08547481]
[1732078399423,0.0133668,3096.9,3096.7,1.61458]
[1732078399631,0.0133668,3096.9,3096.8,1.61456]
[1732078399790,0.0133668,3096.9,3096.8,0.08544635]
[1732078400130,0.0133668,3096.9,3096.7,1.61458]
[1732078400427,0.0133668,3096.9,3096.8,0.08544635]
[1732078400581,0.0133668,3096.9,3096.7,1.61458]
[1732078400780,0.0133668,3096.9,3096.8,1.70000769]
[1732078401787,0.0133668,3096.9,3096.8,2.10737646]
[1732078401991,0.0133668,3096.9,3096.8,2.86647646]
[1732078411138,0.0133668,3096.9,3096.8,0.49281646]
[1732078411290,0.0133668,3096.9,3096.8,0.08544769]
[1732078411722,0.0133668,3096.9,3096.5,1.61472]
[1732078411906,0.0133668,3096.9,3096.8,0.08536136]
[1732078412111,3.2424268,3096.9,3096.3,1.61478]
[1732078412434,0.7578,3096.7,3096.4,0.241528]
[1732078412588,0.7578,3096.7,3096.3,1.61478]
[1732078413816,0.7578,3096.7,3096.4,0.08539215]
[1732078414203,4.57811848,3096.6,3096.4,0.08539215]
[1732078414507,0.0599924,3096.5,3096.1,1.61493]
[1732078415102,0.0599924,3096.5,3095.9,2.41551]
[1732078415337,0.0599924,3096.5,3096.0,1.856511]
[1732078415910,0.7578,3096.3,3096.0,0.241551]
[1732078416241,0.8177924,3096.3,3095.8,1.61509]
[1732078416953,0.8177924,3096.3,3095.9,1.61503]
[1732078417244,0.8177924,3096.3,3095.9,2.019285]
[1732078418352,0.7578,3096.3,3095.9,2.019285]
[1732078422070,0.7578,3096.3,3096.0,1.61497]
[1732078422559,0.7578,3096.3,3096.1,1.61492]
[1732078422707,0.7578,3096.3,3096.1,1.9783365]
[1732078423614,2.13154848,3096.6,3096.1,1.9783365]
[1732078423819,0.7828,3096.6,3096.1,2.41682]
[1732078424165,2.13154848,3096.8,3096.3,1.61482]
[1732078424692,2.13154848,3096.8,3096.3,1.61481]
[1732078425193,2.13154848,3096.8,3096.4,1.61477]
[1732078425949,2.13154848,3096.8,3096.2,3.22971]
[1732078426143,2.13154848,3096.8,3096.3,1.61481]
[1732078426860,0.0133668,3096.9,3096.4,1.61474]
[1732078427061,0.0133668,3096.9,3096.5,1.61472]
[1732078428074,0.0133668,3096.9,3096.4,1.61474]
[1732078428287,0.0733592,3096.9,3096.4,1.61474]
[1732078429102,0.0733592,3096.9,3096.5,0.08543991]
[1732078430005,4.57787848,3096.8,3096.5,0.08543991]
[1732078430297,4.0720724,3096.7,3096.1,1.61492]
[1732078430502,4.0720724,3096.7,3096.2,1.70033787]
[1732078430708,4.0720724,3096.7,3096.2,0.08545787]
[1732078431899,4.01208,3096.7,3096.2,1.70032787]
[1732078433303,4.01208,3096.7,3096.2,0.08545787]
[1732078433609,4.01208,3096.7,3096.0,4.61497]
[1732078433762,4.01208,3096.7,3096.3,0.08546422]
[1732078433962,4.01208,3096.7,3096.0,5.19007039]
[1732078434189,4.01208,3096.7,3096.4,0.08546159]
[1732078434358,4.01208,3096.7,3096.2,1.61487]
[1732078434578,4.01208,3096.7,3096.5,0.0838846]
[1732078434777,4.01208,3096.7,3096.2,1.61487]
[1732078435289,4.01208,3096.7,3096.3,0.08388591]
[1732078436028,4.01208,3096.7,3096.4,0.08387854]
[1732078436178,4.01208,3096.7,3096.1,1.61493]
[1732078436633,4.01208,3096.7,3096.2,0.08389327]
[1732078436812,4.0720724,3096.7,3096.2,0.08389327]
[1732078437477,3.22935,3096.6,3096.2,0.08389327]
[1732078439308,3.2893424,3096.6,3096.2,0.08389327]
[1732078439613,3.22935,3096.6,3096.2,0.08389327]
[1732078441083,3.2893424,3096.6,3096.2,0.08389327]
[1732078441720,3.2893424,3096.6,3096.0,1.61498]
[1732078441930,3.2893424,3096.6,3096.3,0.08387997]
[1732078442231,3.2893424,3096.6,3096.1,2.05157368]
[1732078442232,3.22935,3096.6,3096.1,2.05157368]
[1732078442420,0.7828,3096.7,3096.4,0.08387261]
[1732078442578,0.7828,3096.7,3096.2,1.81999737]
[1732078442785,0.7828,3096.7,3096.3,0.8019]
[1732078443024,1.13297051,3096.9,3096.3,2.41668]
[1732078443221,1.13297051,3096.9,3096.4,0.08387261]
[1732078444043,3.22919,3096.8,3096.4,0.08387261]
[1732078444551,1.13297051,3096.9,3096.4,0.08387261]
[1732078445118,4.36203051,3096.9,3096.4,0.08387261]
[1732078445542,1.13297051,3096.9,3096.5,1.61472]
[1732078445907,0.35017051,3096.9,3096.6,0.08387386]
[1732078446628,0.35017051,3096.9,3096.7,1.61458]
[1732078446832,0.35017051,3096.9,3096.7,1.94589739]
[1732078447137,0.0133668,3096.9,3096.8,0.88576442]
[1732078447500,0.0133668,3096.9,3096.8,0.08386442]
[1732078447743,0.7961668,3096.9,3096.5,1.61472]
[1732078448048,0.7961668,3096.9,3096.8,0.08387261]
[1732078448208,0.7961668,3096.9,3096.3,2.4167]
[1732078448410,4.0252068,3096.9,3096.3,2.4167]
[1732078448709,4.88548533,3096.9,3096.4,0.08390689]
[1732078448916,4.88548533,3096.9,3096.3,2.4167]
[1732078449117,4.0252068,3096.9,3096.4,0.08390689]
[1732078449319,4.0252068,3096.9,3096.1,1.9492679]
[1732078449320,4.63788088,3096.8,3096.2,1.61487]
[1732078449523,3.22927,3096.7,3096.3,0.0839209]
[1732078449912,3.22927,3096.7,3096.1,1.89002679]
[1732078450120,3.22927,3096.7,3096.2,0.08391243]
[1732078450327,1.34874848,3096.8,3096.2,1.69878243]
[1732078450521,4.57795848,3096.8,3096.2,0.08391243]
[1732078450747,4.57795848,3096.8,3096.2,1.69877243]
[1732078450950,3.22929,3096.7,3096.2,0.08391243]
[1732078451374,0.8035,3096.6,3096.2,0.08391243]
[1732078452221,0.8035,3096.6,3096.2,1.69878243]
[1732078452530,1.34874848,3096.8,3096.2,0.52890646]
[1732078452531,5.38138848,3096.8,3096.2,0.52890646]
[1732078452724,5.38138848,3096.8,3096.2,0.08391243]
[1732078452927,5.38138848,3096.8,3096.2,1.69878243]
[1732078455426,0.8035,3096.8,3096.3,1.61481]
[1732078455660,0.8035,3096.8,3096.3,1.69871871]
[1732078455967,4.0926324,3096.8,3096.3,1.69871871]
[1732078456537,0.8634924,3096.8,3096.3,1.69871871]
[1732078456869,0.8035,3096.8,3096.3,1.69871871]
[1732078457863,0.8035,3096.8,3096.3,2.06355557]
[1732078458168,0.0133668,3096.9,3096.4,0.7613]
[1732078458478,0.0133668,3096.9,3096.5,1.69845902]
[1732078458682,0.0133668,3096.9,3096.6,0.30316998]
[1732078458841,0.0133668,3096.9,3096.7,0.30317027]
[1732078459041,0.0133668,3096.9,3096.7,0.08373429]
[1732078459269,0.0133668,3096.9,3096.5,1.61471]
[1732078459469,0.0133668,3096.9,3096.8,0.08372693]
[1732078459676,0.0133668,3096.9,3096.5,1.61471]
[1732078459878,0.0133668,3096.9,3096.8,0.08371532]
[1732078460082,0.0133668,3096.9,3096.4,2.37605]
[1732078460295,0.0133668,3096.9,3096.8,0.08371259]
[1732078460589,0.0133668,3096.9,3096.6,0.30316795]
[1732078460798,0.0133668,3096.9,3096.8,0.08371259]
[1732078460948,0.0133668,3096.9,3096.7,0.08371995]
[1732078461146,0.0133668,3096.9,3096.8,0.08371259]
[1732078461843,0.0133668,3096.9,3096.5,1.91784978]
[1732078462043,0.0133668,3096.9,3096.8,0.08371259]
[1732078462337,0.0133668,3096.9,3096.6,1.61463]
[1732078462587,0.0133668,3096.9,3096.8,0.08371213]
[1732078463081,0.0133668,3096.9,3096.5,0.30305777]
[1732078463290,0.0133668,3096.9,3096.8,0.08371213]
[1732078463460,0.0133668,3096.9,3096.4,1.03238299]
[1732078463779,0.0133668,3096.9,3096.8,0.08371213]
[1732078463985,0.0133668,3096.9,3096.4,1.03238299]
[1732078464189,0.0133668,3096.9,3096.8,0.08371213]
[1732078464345,0.0133668,3096.9,3096.5,0.29819129]
[1732078464684,0.0133668,3096.9,3096.6,0.30308384]
[1732078464894,0.0133668,3096.9,3096.7,0.0837195]
[1732078465046,0.0133668,3096.9,3096.5,1.61472]
[1732078465247,0.0133668,3096.9,3096.6,0.38680969]
[1732078465580,0.0133668,3096.9,3096.6,0.08372686]
[1732078466872,0.0133668,3096.9,3096.6,0.32970155]
[1732078467047,0.0133668,3096.9,3096.8,1.61456]
[1732078467244,0.0133668,3096.9,3096.8,1.69826895]
[1732078468045,0.0133668,3096.9,3096.8,2.00144876]
[1732078468502,0.0133668,3096.9,3096.8,2.46726895]
[1732078468788,0.0133668,3096.9,3096.8,3.17863601]
[1732078468974,0.0133668,3096.9,3096.8,0.79507601]
[1732078469172,0.0133668,3096.9,3096.8,0.38688612]
[1732078469387,0.0133668,3096.9,3096.8,2.00144612]
[1732078472946,0.0133668,3096.9,3096.8,0.38688612]
[1732078473884,0.0133668,3096.9,3096.8,2.00144612]
[1732078474191,0.0133668,3096.9,3096.8,2.00121959]
[1732078474780,0.0133668,3096.9,3096.8,2.43970755]
[1732078476016,0.0133668,3096.9,3096.8,0.82514755]
[1732078477853,0.0133668,3096.9,3096.8,0.52219691]
[1732078478004,0.0133668,3096.9,3096.8,2.13675691]
[1732078478200,0.0133668,3096.9,3096.8,0.08370895]
[1732078478637,0.0133668,3096.9,3096.6,2.38363]
[1732078478833,0.0133668,3096.9,3096.8,0.08364125]
[1732078479013,0.0133668,3096.9,3096.7,0.08364861]
[1732078479214,0.0133668,3096.9,3096.8,0.08364125]
[1732078479615,0.0133668,3096.9,3096.7,2.014433]
[1732078479820,0.0133668,3096.9,3096.8,0.08364125]
[1732078480221,0.0133668,3096.9,3096.7,2.014433]
[1732078480422,0.0133668,3096.9,3096.8,0.36198455]
[1732078488872,0.0133668,3096.9,3096.8,2.78674455]
[1732078491174,0.0133668,3096.9,3096.8,3.40131998]
[1732078492189,0.0133668,3096.9,3096.8,3.73585042]
[1732078492787,0.0133668,3096.9,3096.8,3.40131998]
[1732078502505,0.0133668,3096.9,3096.8,2.8603672]
[1732078503216,0.0133668,3096.9,3096.8,2.86037552]
[1732078503707,0.0133668,3096.9,3096.8,2.31037552]
[1732078503895,0.0133668,3096.9,3096.8,1.69820125]
[1732078505324,0.0133668,3096.9,3096.8,2.24820125]
[1732078506460,0.0133668,3096.9,3096.8,0.63364125]
[1732078507264,0.0133668,3096.9,3096.8,0.08364125]
[1732078507462,0.0133668,3096.9,3096.6,1.61463]
[1732078507709,0.0133668,3096.9,3096.7,0.63364502]
[1732078508312,0.0133668,3096.9,3096.8,1.61456]
[1732078508605,0.0133668,3096.9,3096.8,1.69819905]
[1732078510385,0.0133668,3096.9,3096.8,0.08363905]
[1732078510777,0.0133668,3096.9,3096.7,0.55]
[1732078510973,0.0133668,3096.9,3096.8,0.08363905]
[1732078511190,0.0133668,3096.9,3096.7,2.778502]
[1732078511381,0.0133668,3096.9,3096.8,1.69819905]
[1732078514337,0.0133668,3096.9,3096.8,2.03224977]
[1732078514637,0.0133668,3096.9,3096.8,1.69819905]
[1732078515709,0.0133668,3096.9,3096.8,2.51981962]
[1732078519698,0.0133668,3096.9,3096.8,3.31781962]
[1732078520533,0.0133668,3096.9,3096.8,2.98373502]
[1732078520746,0.0133668,3096.9,3096.8,3.53373502]
[1732078522447,0.0133668,3096.9,3096.8,3.86803678]
[1732078524951,0.0133668,3096.9,3096.8,3.53373502]
[1732078525114,0.0133668,3096.9,3096.8,3.86808357]
[1732078526824,0.0133668,3096.9,3096.8,0.9679876]
[1732078527029,0.0133668,3096.9,3096.8,0.08363905]
[1732078527321,0.0133668,3096.9,3096.7,1.29167]
[1732078527522,0.0133668,3096.9,3096.8,0.08084898]
[1732078527922,0.0133668,3096.9,3096.7,1.62601855]
[1732078528254,0.0133668,3096.9,3096.8,0.08084898]
[1732078528562,0.0133668,3096.9,3096.7,1.62608288]
[1732078528914,0.0133668,3096.9,3096.8,0.08084898]
[1732078529116,0.0133668,3096.9,3096.7,1.62608288]
[1732078529412,0.0133668,3096.9,3096.8,0.08085353]
[1732078530182,0.0133668,3096.9,3096.7,1.62608288]
[1732078530467,0.0133668,3096.9,3096.8,1.37250353]
[1732078530670,0.0133668,3096.9,3096.8,2.00677505]
[1732078530874,0.0133668,3096.9,3096.8,1.67236217]
[1732078531166,0.0133668,3096.9,3096.8,2.00677505]
[1732078531529,0.0133668,3096.9,3096.8,2.0066851]
[1732078532562,0.0133668,3096.9,3096.8,1.67236217]
[1732078532959,0.0133668,3096.9,3096.8,2.0066851]
[1732078535176,0.0133668,3096.9,3096.8,2.00672523]
[1732078535683,0.0133668,3096.9,3096.8,1.67236217]
[1732078535839,0.0133668,3096.9,3096.8,2.00675177]
[1732078536035,0.0133668,3096.9,3096.8,2.22236217]
[1732078536540,0.0133668,3096.9,3096.8,2.55678966]
[1732078536872,0.0133668,3096.9,3096.8,2.22236217]
[1732078537643,0.0133668,3096.9,3096.8,3.0939338]
[1732078537898,0.0133668,3096.9,3096.8,6.0939338]
[1732078538193,0.0133668,3096.9,3096.8,9.4839338]
[1732078538359,0.0133668,3096.9,3096.8,9.41936217]
[1732078559353,0.0133668,3096.9,3096.8,9.51471753]
[1732078560279,0.0133668,3096.9,3096.8,9.41936217]
[1732078564402,0.0133668,3096.9,3096.8,8.61236217]
[1732078581451,0.0133668,3096.9,3096.8,9.39756217]
[1732078582566,0.8162,3098.3,3097.8,0.55]
[1732078583059,0.8162,3098.3,3097.9,0.08065292]
[1732078583458,0.8162,3098.3,3098.0,0.55]
[1732078583668,0.8162,3098.3,3098.0,1.84114]
[1732078583966,0.8162,3098.3,3098.1,0.07870479]
[1732078584324,0.8162,3098.3,3098.2,0.55]
[1732078584836,0.8162,3098.3,3098.2,0.62869985]
[1732078585458,0.8162,3098.3,3098.2,1.91976985]
[1732078585831,0.8322,3099.0,3098.4,1.29098]
[1732078586062,4.05904,3099.0,3098.5,0.0786743]
[1732078586650,3.22695,3098.9,3098.5,0.0786743]
[1732078586872,0.8322,3099.0,3098.5,0.0786743]
[1732078587047,0.8322,3099.0,3098.5,1.29091]
[1732078587244,0.8322,3099.0,3098.6,0.07867239]
[1732078587868,0.8322,3099.0,3098.5,1.29092]
[1732078588085,0.8322,3099.0,3098.7,0.07869232]
[1732078588380,0.8322,3099.0,3098.6,0.07867161]
[1732078588559,0.8322,3099.0,3098.8,0.07865691]
[1732078588765,0.8322,3099.0,3098.7,0.07866426]
[1732078589083,1.238095,3099.0,3098.8,0.07865691]
[1732078589586,1.238095,3099.0,3098.5,1.29092]
[1732078589783,1.238095,3099.0,3098.9,0.07866193]
[1732078590086,1.238095,3099.0,3098.9,0.07860869]
[1732078590472,1.238095,3099.0,3098.5,1.29092]
[1732078590689,1.238095,3099.0,3098.9,0.07860869]
[1732078590994,1.238095,3099.0,3098.5,1.29092]
[1732078591160,0.8322,3099.0,3098.9,0.07860869]
[1732078591357,0.8322,3099.0,3098.3,1.29102]
[1732078591684,4.05905,3099.0,3098.4,1.29098]
[1732078591895,4.05905,3099.0,3098.5,0.55]
[1732078592188,3.22722,3098.7,3098.4,0.07864546]
[1732078592345,3.22722,3098.7,3098.6,0.07863075]
[1732078592546,3.22726,3098.6,3098.5,0.0786381]
[1732078592762,3.22726,3098.6,3097.7,1.29125]
[1732078592763,0.8322,3098.4,3097.7,1.29125]
[1732078593048,0.8322,3098.2,3097.7,1.29125]
[1732078593949,0.8322,3098.2,3097.8,0.0760207]
[1732078594387,0.8322,3098.2,3097.7,1.29125]
[1732078594686,4.05988,3098.2,3097.8,0.07601576]
[1732078595052,4.05988,3098.2,3097.7,1.29125]
[1732078595249,0.8322,3098.2,3098.0,1.29115]
[1732078595583,0.8322,3098.2,3097.9,0.55]
[1732078595792,0.8322,3098.2,3098.1,0.07598627]
[1732078595944,0.8322,3098.2,3098.0,0.07599362]
[1732078596148,0.8322,3098.2,3098.1,0.07598627]
[1732078596478,4.05988,3098.2,3097.6,1.29128]
[1732078596662,4.05989,3098.2,3098.1,0.07601101]
[1732078596853,4.05989,3098.2,3097.7,0.55]
[1732078596854,1.70182109,3098.2,3097.7,1.84127]
[1732078597193,0.8322,3098.2,3098.1,0.07602261]
[1732078597349,0.8322,3098.2,3097.7,1.84127]
[1732078597550,0.8322,3098.2,3098.1,0.07602261]
[1732078597749,0.8322,3098.2,3097.7,0.55]
[1732078598249,0.8322,3098.2,3097.8,1.36725468]
[1732078598451,0.8322,3098.2,3097.9,1.29118]
[1732078598892,0.8322,3098.2,3098.0,0.07602997]
[1732078600972,0.8322,3098.2,3097.7,1.84124]
[1732078601162,0.8322,3098.2,3098.1,0.07602261]
[1732078601348,0.8322,3098.2,3097.7,1.84124]
[1732078601569,0.8322,3098.2,3098.1,0.07602261]
[1732078601774,0.8322,3098.2,3097.8,1.29122]
[1732078602305,0.8322,3098.2,3097.9,0.07603732]
[1732078602512,3.22753,3098.4,3097.9,0.07603732]
[1732078602513,0.751,3098.0,3097.9,0.07603732]
[1732078602666,3.97888,3098.0,3097.9,0.07603732]
[1732078602866,0.751,3098.0,3097.4,1.29136]
[1732078603109,0.751,3098.0,3097.5,0.55]
[1732078603110,3.9789,3098.0,3097.5,0.55]
[1732078603266,3.9789,3098.0,3097.5,0.6260949]
[1732078605006,3.97889,3098.0,3097.5,0.6260949]
[1732078605193,0.751,3098.0,3097.5,0.6260949]
[1732078605404,3.97889,3098.0,3097.5,0.6260949]
[1732078613082,0.751,3098.0,3097.5,1.9174449]
[1732078613407,0.751,3098.0,3097.5,2.26504499]
[1732078614124,3.22799,3097.9,3097.5,0.97369499]
[1732078614618,0.751,3098.0,3097.7,1.29126]